bitfinex/quotes_BTCUSD_20241004
["timestamp","ask_amount","ask_price","bid_price","bid_amount"]
[1728000223882,0.001636,60892.0,60891.0,0.285927]
[1728000224087,0.001636,60892.0,60891.0,0.192227]
[1728000228944,0.001636,60892.0,60891.0,0.35869781]
[1728000229114,0.001636,60892.0,60891.0,0.45491371]
[1728000229921,0.001636,60892.0,60891.0,0.53271371]
[1728000230709,0.001636,60892.0,60891.0,0.53692059]
[1728000231783,0.001636,60892.0,60891.0,0.45912059]
[1728000234176,0.001636,60892.0,60891.0,0.45491371]
[1728000234437,0.001636,60892.0,60891.0,0.35541371]
[1728000236063,0.001636,60892.0,60891.0,0.192227]
[1728000241407,0.001636,60892.0,60891.0,0.45819785]
[1728000241639,0.001636,60892.0,60891.0,0.45491371]
[1728000241951,0.001636,60892.0,60891.0,0.192227]
[1728000243473,0.00390227,60892.0,60891.0,0.192227]
[1728000243714,0.26602727,60892.0,60891.0,0.028]
[1728000243962,0.55796104,60892.0,60891.0,0.028]
[1728000244220,0.76854576,60892.0,60891.0,0.028]
[1728000244696,0.76854576,60892.0,60891.0,0.014]
[1728000244951,0.240635,60888.0,60887.0,0.000818]
[1728000245177,0.69036817,60888.0,60887.0,0.000818]
[1728000245387,0.69262309,60888.0,60887.0,0.000818]
[1728000245642,0.69648413,60888.0,60887.0,0.000818]
[1728000246606,0.64413707,60888.0,60887.0,0.000818]
[1728000247065,0.6963849,60888.0,60887.0,0.000818]
[1728000247332,0.64413707,60888.0,60887.0,0.000818]
[1728000249372,0.76700116,60888.0,60887.0,0.000818]
[1728000249619,0.7669885,60888.0,60887.0,0.000818]
[1728000249896,0.7666505,60888.0,60887.0,0.000818]
[1728000250163,0.64379966,60888.0,60887.0,0.000818]
[1728000250681,0.76666162,60888.0,60887.0,0.000818]
[1728000250910,0.74207703,60888.0,60887.0,0.000818]
[1728000251820,0.74207703,60888.0,60887.0,0.004818]
[1728000252329,0.74207703,60888.0,60887.0,0.000818]
[1728000252578,0.55527564,60888.0,60887.0,0.002818]
[1728000252819,0.55527564,60888.0,60887.0,0.004818]
[1728000254280,0.24288992,60888.0,60887.0,0.004818]
[1728000254525,0.5553229,60888.0,60887.0,0.002818]
[1728000254735,0.45704553,60888.0,60887.0,0.000818]
[1728000254954,0.24288992,60888.0,60887.0,0.000818]
[1728000255204,0.55537889,60888.0,60887.0,0.000818]
[1728000255488,0.45710152,60888.0,60887.0,0.000818]
[1728000255689,0.55532773,60888.0,60887.0,0.000818]
[1728000256433,0.45710152,60888.0,60887.0,0.000818]
[1728000256673,0.24288992,60888.0,60887.0,0.000818]
[1728000256905,0.45696379,60888.0,60887.0,0.000818]
[1728000257332,0.24288992,60888.0,60887.0,0.000818]
[1728000257632,0.31654712,60888.0,60887.0,0.000818]
[1728000258112,0.07865492,60888.0,60887.0,0.165056]
[1728000258350,0.00225492,60888.0,60887.0,0.165056]
[1728000259085,0.0752932,60892.0,60889.0,0.164233]
[1728000259086,0.05074249,60892.0,60889.0,0.164233]
[1728000259326,0.05074249,60892.0,60888.0,0.164235]
[1728000259327,0.04910649,60891.0,60888.0,0.164235]
[1728000259580,0.0752932,60892.0,60887.0,0.165056]
[1728000259581,0.04910649,60890.0,60887.0,0.165056]
[1728000259814,0.04910649,60890.0,60888.0,0.164234]
[1728000260249,0.04910649,60890.0,60887.0,0.000818]
[1728000260471,0.04910649,60890.0,60888.0,0.328471]
[1728000260708,0.04910649,60890.0,60889.0,0.164233]
[1728000260933,0.04910649,60890.0,60889.0,0.165233]
[1728000261394,0.04910649,60890.0,60889.0,0.164233]
[1728000261581,0.05131893,60890.0,60889.0,0.164233]
[1728000262042,0.05131893,60890.0,60889.0,0.167233]
[1728000262471,0.05131893,60890.0,60889.0,0.003]
[1728000262691,0.05131893,60890.0,60889.0,0.006]
[1728000262911,0.05131893,60890.0,60889.0,0.170233]
[1728000263575,0.00221244,60890.0,60889.0,0.170233]
[1728000263795,0.05133042,60890.0,60889.0,0.170233]
[1728000264513,0.05133042,60890.0,60889.0,0.006]
[1728000264744,0.05133042,60890.0,60889.0,0.170233]
[1728000264970,0.05132999,60890.0,60889.0,0.170233]
[1728000265204,0.05132999,60890.0,60889.0,0.006]
[1728000265424,0.05132999,60890.0,60889.0,0.170233]
[1728000265644,0.05132841,60890.0,60889.0,0.170233]
[1728000266304,0.00221244,60890.0,60889.0,0.170233]
[1728000266561,0.00221244,60890.0,60889.0,0.35714083]
[1728000266786,0.00221244,60890.0,60889.0,0.60132754]
[1728000267040,0.001636,60892.0,60891.0,0.164227]
[1728000267250,0.001636,60892.0,60891.0,0.32741371]
[1728000268177,0.001636,60892.0,60891.0,0.34141371]
[1728000269811,0.001636,60892.0,60891.0,0.43861371]
[1728000270047,0.001636,60892.0,60891.0,0.68726845]
[1728000270292,0.001636,60892.0,60891.0,0.65861371]
[1728000270969,0.001636,60892.0,60891.0,0.63561371]
[1728000271192,0.001636,60892.0,60891.0,0.64961371]
[1728000271420,0.001636,60892.0,60891.0,0.66361371]
[1728000271677,0.001636,60892.0,60891.0,0.63561371]
[1728000271902,0.001636,60892.0,60891.0,0.64961371]
[1728000273037,0.001636,60892.0,60891.0,0.66361371]
[1728000274635,0.001636,60892.0,60891.0,0.66161371]
[1728000275161,0.001636,60892.0,60891.0,0.53361371]
[1728000275378,0.001636,60892.0,60891.0,0.7799616]
[1728000275592,0.001636,60892.0,60891.0,0.64061371]
[1728000276527,0.001636,60892.0,60891.0,0.66361371]
[1728000277056,0.001636,60892.0,60891.0,0.63561371]
[1728000277290,0.001636,60892.0,60891.0,0.64961371]
[1728000277975,0.001636,60892.0,60891.0,0.66361371]
[1728000278195,0.001636,60892.0,60891.0,0.64961371]
[1728000278699,0.001636,60892.0,60891.0,0.66361371]
[1728000285268,0.001636,60892.0,60891.0,0.66161371]
[1728000287007,0.001636,60892.0,60891.0,0.65661371]
[1728000287439,0.001636,60892.0,60891.0,0.66161371]
[1728000287699,0.001636,60892.0,60891.0,0.65661371]
[1728000288182,0.001636,60892.0,60891.0,0.66161371]
[1728000288691,0.001636,60892.0,60891.0,0.65661371]
[1728000289096,0.001636,60892.0,60891.0,0.58061371]
[1728000289330,0.001636,60892.0,60891.0,0.55761371]
[1728000289579,0.001636,60892.0,60891.0,0.45541371]
[1728000289762,0.001636,60892.0,60891.0,0.35541371]
[1728000291156,0.001636,60892.0,60891.0,0.192227]
[1728000291641,0.084736,60892.0,60891.0,0.192227]
[1728000293089,0.084736,60892.0,60891.0,0.164227]
[1728000293333,0.084736,60892.0,60891.0,0.178227]
[1728000293592,0.084736,60892.0,60891.0,0.192227]
[1728000293833,0.178536,60892.0,60891.0,0.164227]
[1728000294083,0.178536,60892.0,60891.0,0.190227]
[1728000294309,0.18079918,60892.0,60891.0,0.177227]
[1728000294530,0.18079918,60892.0,60891.0,0.164227]
[1728000294805,0.18079918,60892.0,60891.0,0.174227]
[1728000295031,0.18079918,60892.0,60891.0,0.172227]
[1728000295519,0.18079918,60892.0,60891.0,0.008]
[1728000295778,0.34502418,60892.0,60891.0,0.008]
[1728000296259,0.18079918,60892.0,60891.0,0.016]
[1728000296761,0.34502418,60892.0,60891.0,0.016]
[1728000296993,0.18079918,60892.0,60891.0,0.016]
[1728000297473,0.34502418,60892.0,60891.0,0.016]
[1728000298209,0.50821089,60892.0,60891.0,0.016]
[1728000298432,0.55724529,60892.0,60891.0,0.016]
[1728000298900,0.5572454,60892.0,60891.0,0.016]
[1728000299117,0.50821089,60892.0,60891.0,0.016]
[1728000300773,0.5572454,60892.0,60891.0,0.016]
[1728000301513,0.22983369,60892.0,60891.0,0.016]
[1728000301769,0.25122418,60892.0,60891.0,0.016]
[1728000302263,0.60131872,60892.0,60891.0,0.016]
[1728000302502,0.69511872,60892.0,60891.0,0.016]
[1728000303218,0.18079918,60892.0,60891.0,0.016]
[1728000303441,0.08699918,60892.0,60891.0,0.180227]
[1728000304348,0.08699918,60892.0,60891.0,0.016]
[1728000305066,0.08699918,60892.0,60891.0,0.180227]
[1728000305776,0.00389918,60892.0,60891.0,0.180227]
[1728000306023,0.001636,60892.0,60891.0,0.180227]
[1728000307463,0.00386365,60892.0,60891.0,0.180227]
[1728000310811,0.00386365,60892.0,60891.0,0.016]
[1728000311039,0.35018865,60892.0,60891.0,0.016]
[1728000311293,0.39925925,60892.0,60891.0,0.016]
[1728000311792,0.35018865,60892.0,60891.0,0.016]
[1728000312044,0.39922878,60892.0,60891.0,0.016]
[1728000312295,0.42379456,60892.0,60891.0,0.016]
[1728000312548,0.35018865,60892.0,60891.0,0.016]
[1728000312774,0.3992301,60892.0,60891.0,0.016]
[1728000312997,0.42374961,60892.0,60891.0,0.016]
[1728000313494,0.35018865,60892.0,60891.0,0.016]
[1728000314123,0.58693632,60892.0,60891.0,0.016]
[1728000314966,0.56240609,60892.0,60891.0,0.016]
[1728000315220,0.51337536,60892.0,60891.0,0.016]
[1728000315655,0.13509438,60892.0,60891.0,0.016]
[1728000315908,0.08606365,60892.0,60891.0,0.016]
[1728000316176,0.25028865,60892.0,60891.0,0.016]
[1728000316701,0.41347536,60892.0,60891.0,0.016]
[1728000316927,0.48703632,60892.0,60891.0,0.016]
[1728000317166,0.41347536,60892.0,60891.0,0.016]
[1728000317397,0.72423819,60892.0,60891.0,0.016]
[1728000317674,0.13509027,60892.0,60891.0,0.016]
[1728000317922,0.25028865,60892.0,60891.0,0.016]
[1728000318143,0.29708762,60892.0,60891.0,0.016]
[1728000318919,0.41124771,60892.0,60891.0,0.016]
[1728000319153,0.41124771,60892.0,60887.0,0.000818]
[1728000319154,0.264235,60888.0,60887.0,0.000818]
[1728000319423,0.264235,60888.0,60874.0,0.0505273]
[1728000319424,0.18690783,60875.0,60874.0,0.0505273]
[1728000319660,0.66346632,60875.0,60874.0,0.000818]
[1728000319890,0.90004856,60875.0,60874.0,0.000818]
[1728000320373,0.66345316,60875.0,60874.0,0.000818]
[1728000320609,1.00980105,60875.0,60874.0,0.000818]
[1728000320929,1.06735992,60875.0,60874.0,0.001818]
[1728000321160,0.164295,60866.0,60865.0,0.000818]
[1728000321387,0.68998954,60866.0,60865.0,0.000818]
[1728000322753,0.69698954,60866.0,60865.0,0.001818]
[1728000323192,0.68998954,60866.0,60865.0,0.000818]
[1728000323634,0.69298954,60866.0,60865.0,0.000818]
[1728000323847,0.69798954,60866.0,60865.0,0.000818]
[1728000324703,0.69298954,60866.0,60865.0,0.000818]
[1728000325175,0.82915436,60866.0,60865.0,0.000818]
[1728000325389,0.82915436,60866.0,60865.0,0.001818]
[1728000325390,0.78918954,60866.0,60865.0,0.001818]
[1728000325831,0.83113908,60866.0,60865.0,0.000818]
[1728000326072,0.84113908,60866.0,60865.0,0.001818]
[1728000326333,0.82318954,60866.0,60865.0,0.002818]
[1728000326548,0.86214264,60866.0,60865.0,0.001818]
[1728000326776,0.85414264,60866.0,60865.0,0.000818]
[1728000327008,0.86728768,60866.0,60865.0,0.001818]
[1728000327231,0.87528768,60866.0,60865.0,0.002818]
[1728000327438,0.94869678,60866.0,60865.0,0.002818]
[1728000327681,0.42683283,60855.0,60854.0,0.000818]
[1728000327916,0.59001954,60855.0,60854.0,0.000818]
[1728000329381,0.78021954,60855.0,60854.0,0.000818]
[1728000329607,0.78221954,60855.0,60854.0,0.000818]
[1728000329842,0.78321954,60855.0,60854.0,0.000818]
[1728000330303,0.78021954,60855.0,60854.0,0.000818]
[1728000330800,0.78521954,60855.0,60854.0,0.000818]
[1728000331028,0.70001954,60855.0,60854.0,0.000818]
[1728000332184,0.69001954,60855.0,60854.0,0.000818]
[1728000332426,0.69501954,60855.0,60854.0,0.000818]
[1728000332698,0.69701954,60855.0,60854.0,0.000818]
[1728000332925,0.69201954,60855.0,60854.0,0.000818]
[1728000333174,0.69501954,60855.0,60854.0,0.000818]
[1728000333647,0.69001954,60855.0,60854.0,0.000818]
[1728000334083,0.69201954,60855.0,60854.0,0.000818]
[1728000335291,0.69301954,60855.0,60854.0,0.000818]
[1728000335746,0.69201954,60855.0,60854.0,0.000818]
[1728000335972,0.1776,60855.0,60854.0,0.001818]
[1728000336199,0.002,60855.0,60854.0,0.166145]
[1728000336657,0.24634789,60860.0,60854.0,0.001818]
[1728000336888,0.24634789,60860.0,60858.0,0.164315]
[1728000337104,0.24634789,60860.0,60858.0,0.164316]
[1728000337344,0.1,60860.0,60859.0,0.164314]
[1728000337583,0.1,60860.0,60856.0,0.328641]
[1728000337841,0.1,60860.0,60857.0,0.164319]
[1728000338076,0.1,60860.0,60858.0,0.166315]
[1728000338306,0.1,60860.0,60858.0,0.164315]
[1728000338535,0.005,60860.0,60858.0,0.164316]
[1728000339004,0.264306,60862.0,60858.0,0.164316]
[1728000339497,0.264306,60862.0,60858.0,0.166316]
[1728000339757,0.1,60864.0,60861.0,0.164308]
[1728000340013,0.16318671,60865.0,60864.0,0.1643]
[1728000340249,0.26318671,60865.0,60864.0,0.1643]
[1728000340571,1.04491789,60870.0,60858.0,0.002]
[1728000340572,0.47,60870.0,60858.0,0.328629]
[1728000340795,0.47,60870.0,60868.0,0.164289]
[1728000340796,0.24634789,60869.0,60868.0,0.164289]
[1728000341016,0.24634789,60869.0,60862.0,0.328609]
[1728000341249,0.18690783,60864.0,60856.0,0.0496448]
[1728000341485,0.18690783,60860.0,60856.0,0.0496448]
[1728000341729,0.18690783,60860.0,60856.0,0.3782868]
[1728000341946,0.18690783,60860.0,60857.0,0.164318]
[1728000341947,0.35121983,60860.0,60857.0,0.164318]
[1728000342893,0.35121983,60860.0,60858.0,0.164316]
[1728000342894,0.18690783,60860.0,60858.0,0.164316]
[1728000343119,0.164309,60861.0,60858.0,0.164316]
[1728000343350,0.164309,60861.0,60857.0,0.001]
[1728000343351,0.164312,60860.0,60857.0,0.001]
[1728000343571,0.164312,60860.0,60857.0,0.165319]
[1728000343785,0.164312,60860.0,60857.0,0.166319]
[1728000343993,0.164312,60860.0,60857.0,0.165319]
[1728000344232,0.32749571,60861.0,60858.0,0.164316]
[1728000345358,0.32749571,60861.0,60858.0,0.165316]
[1728000345857,0.1,60866.0,60859.0,0.328628]
[1728000346082,0.24634789,60872.0,60864.0,0.1643]
[1728000346083,0.24798389,60865.0,60864.0,0.1643]
[1728000346561,0.001636,60865.0,60864.0,0.1643]
[1728000347761,0.001636,60865.0,60864.0,0.1683]
[1728000348019,0.001636,60865.0,60864.0,0.42757257]
[1728000348244,0.001636,60865.0,60864.0,0.50098671]
[1728000349213,0.002636,60865.0,60864.0,0.51198671]
[1728000349706,0.001636,60865.0,60864.0,0.50098671]
[1728000350229,0.003636,60865.0,60864.0,0.52398671]
[1728000350433,0.002636,60865.0,60864.0,0.51398671]
[1728000350687,0.003636,60865.0,60864.0,0.52798671]
[1728000351148,0.003636,60865.0,60864.0,0.53218393]
[1728000352571,0.003636,60865.0,60864.0,0.3648]
[1728000354286,0.003636,60865.0,60864.0,0.52798671]
[1728000354529,0.24634789,60887.0,60864.0,0.38668671]
[1728000354790,0.24634789,60887.0,60879.0,0.52256783]
[1728000355029,0.24634789,60887.0,60879.0,0.54556783]
[1728000355264,0.24634789,60887.0,60879.0,0.64556783]
[1728000355510,0.24634789,60887.0,60886.0,0.164241]
[1728000356007,0.001636,60892.0,60891.0,0.164227]
[1728000357641,0.001636,60892.0,60891.0,0.171227]
[1728000358346,0.001636,60892.0,60891.0,0.177227]
[1728000362604,0.001636,60892.0,60891.0,0.51509812]
[1728000362832,0.001636,60892.0,60891.0,0.51181371]
[1728000363975,0.001636,60892.0,60891.0,0.49881371]
[1728000364267,0.001636,60900.0,60899.0,0.025]
[1728000364479,0.24798389,60900.0,60899.0,0.80796931]
[1728000364715,0.001636,60900.0,60899.0,0.80796931]
[1728000364967,0.001636,60900.0,60899.0,0.80596931]
[1728000365191,0.001636,60900.0,60899.0,0.90596931]
[1728000365911,0.001636,60900.0,60899.0,0.91996931]
[1728000366443,0.001636,60900.0,60899.0,0.93396931]
[1728000367170,0.001636,60900.0,60899.0,0.91996931]
[1728000367416,0.001636,60900.0,60899.0,0.63079271]
[1728000367651,0.001636,60900.0,60899.0,0.55259271]
[1728000368133,0.001636,60900.0,60899.0,0.192206]
[1728000368888,0.001636,60900.0,60899.0,0.178206]
[1728000369397,0.001636,60900.0,60899.0,0.164206]
[1728000369639,0.001636,60900.0,60899.0,0.166206]
[1728000369862,0.001636,60900.0,60899.0,0.164206]
[1728000370081,0.001636,60900.0,60899.0,0.173206]
[1728000370313,0.001636,60900.0,60881.0,0.425709]
[1728000370561,0.001636,60900.0,60899.0,0.173206]
[1728000370805,0.001636,60900.0,60899.0,0.178206]
[1728000371518,0.001636,60900.0,60899.0,0.005]
[1728000371754,0.165839,60900.0,60899.0,0.011]
[1728000371996,0.001636,60900.0,60899.0,0.011]
[1728000372218,0.001636,60900.0,60899.0,0.164206]
[1728000372716,0.001636,60900.0,60899.0,0.170206]
[1728000372935,0.001636,60900.0,60899.0,0.32739271]
[1728000373211,0.002636,60900.0,60899.0,0.61185289]
[1728000373447,0.002636,60900.0,60899.0,0.60856931]
[1728000373683,0.002636,60900.0,60899.0,0.33439271]
[1728000373922,0.001636,60900.0,60899.0,0.32739271]
[1728000374140,0.001636,60900.0,60899.0,0.33339271]
[1728000374414,0.001636,60900.0,60899.0,0.170206]
[1728000374645,0.001636,60900.0,60899.0,0.164206]
[1728000374866,0.001636,60900.0,60899.0,0.177206]
[1728000375339,0.001636,60900.0,60899.0,0.178206]
[1728000375770,0.001636,60900.0,60899.0,0.189206]
[1728000376002,0.001636,60900.0,60899.0,0.175206]
[1728000376659,0.001636,60900.0,60899.0,0.186206]
[1728000378775,0.001636,60900.0,60899.0,0.022]
[1728000379024,0.165839,60900.0,60899.0,0.022]
[1728000380284,0.165839,60900.0,60899.0,0.011]
[1728000380787,0.165839,60900.0,60893.0,0.328444]
[1728000380788,0.16584,60900.0,60893.0,0.328444]
[1728000381022,0.001636,60900.0,60899.0,0.164206]
[1728000381271,0.001636,60900.0,60895.0,0.328431]
[1728000381272,0.001636,60900.0,60898.0,0.164208]
[1728000381496,0.001636,60900.0,60895.0,0.328433]
[1728000381744,0.001636,60900.0,60898.0,0.164208]
[1728000382211,0.001636,60900.0,60899.0,0.164206]
[1728000383914,0.001636,60900.0,60899.0,0.174206]
[1728000385102,0.001636,60900.0,60899.0,0.011]
[1728000385356,0.165839,60900.0,60899.0,0.02]
[1728000385857,0.165839,60900.0,60899.0,0.011]
[1728000386109,0.165839,60900.0,60899.0,0.022]
[1728000386352,0.165839,60900.0,60899.0,0.011]
[1728000387088,0.6897226,60900.0,60894.0,0.164217]
[1728000387313,0.164209,60898.0,60894.0,0.164217]
[1728000387552,0.164214,60896.0,60893.0,0.164221]
[1728000387787,0.164214,60896.0,60892.0,0.164224]
[1728000388288,0.164214,60896.0,60894.0,0.003]
[1728000388754,0.164212,60897.0,60893.0,0.164221]
[1728000389658,0.164209,60898.0,60894.0,0.164218]
[1728000390184,0.40852871,60900.0,60892.0,0.333265]
[1728000390397,0.40852871,60900.0,60895.0,0.164215]
[1728000390615,0.164207,60899.0,60896.0,0.164213]
[1728000391322,0.328414,60899.0,60894.0,0.164219]
[1728000391544,0.328414,60899.0,60894.0,0.170219]
[1728000391778,0.164212,60897.0,60894.0,0.170219]
[1728000392097,0.164208,60899.0,60895.0,0.164215]
[1728000392291,0.57273171,60900.0,60896.0,0.002]
[1728000392292,0.164211,60897.0,60896.0,0.002]
[1728000392769,0.57273171,60900.0,60896.0,0.002]
[1728000392770,0.40852771,60900.0,60896.0,0.164213]
[1728000392981,0.164207,60899.0,60896.0,0.164213]
[1728000393240,0.57272971,60900.0,60894.0,0.003]
[1728000393241,0.164209,60898.0,60894.0,0.003]
[1728000393489,0.164209,60898.0,60894.0,0.164217]
[1728000393722,0.164209,60898.0,60896.0,0.003]
[1728000394832,0.164209,60898.0,60894.0,0.167218]
[1728000395260,0.164209,60898.0,60896.0,0.001]
[1728000395480,0.164209,60898.0,60894.0,0.164218]
[1728000395722,0.164206,60899.0,60896.0,0.005]
[1728000395953,0.164206,60899.0,60896.0,0.167214]
[1728000396186,0.164211,60897.0,60896.0,0.003]
[1728000396822,0.164211,60897.0,60896.0,0.004]
[1728000397064,0.164211,60897.0,60896.0,0.001]
[1728000397539,0.2133273,60898.0,60896.0,0.001]
[1728000397784,0.0491183,60898.0,60896.0,0.001]
[1728000397992,0.0491183,60899.0,60897.0,0.164211]
[1728000398216,0.0491183,60899.0,60897.0,0.16421]
[1728000398437,0.0491183,60898.0,60896.0,0.003]
[1728000398656,0.0491183,60898.0,60892.0,0.329263]
[1728000398657,0.3775443,60897.0,60892.0,0.000818]
[1728000398872,0.07367745,60898.0,60893.0,0.16422]
[1728000398873,0.04914796,60895.0,60893.0,0.16422]
[1728000399090,0.04914796,60894.0,60892.0,0.165042]
[1728000399311,0.07372195,60894.0,60892.0,0.165042]
[1728000399543,0.07372195,60894.0,60893.0,0.164222]
[1728000399958,0.07372195,60894.0,60893.0,0.165222]
[1728000400383,0.21478207,60894.0,60893.0,0.165222]
[1728000400599,0.0982366,60895.0,60894.0,0.164219]
[1728000400826,0.0982366,60895.0,60893.0,0.329443]
[1728000400827,0.07377883,60895.0,60893.0,0.329443]
[1728000401053,0.0491856,60894.0,60893.0,0.493665]
[1728000401273,0.0491856,60897.0,60896.0,0.164212]
[1728000401489,0.0491856,60898.0,60896.0,0.164212]
[1728000401702,0.001636,60897.0,60896.0,0.164212]
[1728000401914,0.001636,60897.0,60896.0,0.164214]
[1728000402662,0.001636,60897.0,60896.0,0.1724979]
[1728000402901,0.001636,60897.0,60896.0,0.33068461]
[1728000403128,0.001636,60897.0,60896.0,0.49850071]
[1728000403341,0.001636,60897.0,60896.0,0.50450071]
[1728000403797,0.001636,60897.0,60896.0,0.51050071]
[1728000404022,0.001636,60897.0,60896.0,0.347314]
[1728000404258,0.001636,60897.0,60896.0,0.341314]
[1728000404475,0.001636,60897.0,60896.0,0.335314]
[1728000404719,0.001636,60897.0,60896.0,0.349314]
[1728000405439,0.001636,60897.0,60896.0,0.028]
[1728000405694,0.001636,60897.0,60896.0,0.014]
[1728000405695,0.165847,60897.0,60896.0,0.014]
[1728000405929,0.165847,60897.0,60896.0,0.028]
[1728000406163,0.05081468,60897.0,60896.0,0.014]
[1728000406381,0.05081468,60897.0,60893.0,0.000818]
[1728000406382,0.164215,60896.0,60893.0,0.000818]
[1728000406621,0.164215,60896.0,60894.0,0.164218]
[1728000406622,0.04917997,60896.0,60894.0,0.164218]
[1728000406850,0.04917997,60896.0,60895.0,0.164217]
[1728000407372,0.05081597,60897.0,60895.0,0.164217]
[1728000407593,0.05081597,60897.0,60893.0,0.32926]
[1728000407594,0.05081597,60897.0,60896.0,0.009]
[1728000408040,0.21502797,60897.0,60893.0,0.000818]
[1728000408262,0.21502797,60897.0,60896.0,0.009]
[1728000408484,0.165848,60897.0,60896.0,0.009]
[1728000408731,0.165848,60897.0,60895.0,0.01]
[1728000408732,0.164214,60896.0,60895.0,0.01]
[1728000409876,0.2133922,60896.0,60895.0,0.01]
[1728000410117,0.2133922,60896.0,60895.0,0.003]
[1728000410341,0.164214,60896.0,60895.0,0.003]
[1728000410776,0.23799283,60896.0,60895.0,0.003]
[1728000410986,0.47696179,60896.0,60895.0,0.003]
[1728000411255,0.164214,60896.0,60895.0,0.007]
[1728000411465,0.47705563,60896.0,60895.0,0.007]
[1728000411694,0.4771959,60896.0,60895.0,0.007]
[1728000411914,0.4771959,60896.0,60895.0,0.004]
[1728000412140,0.4771959,60896.0,60895.0,0.006]
[1728000412358,0.37880195,60896.0,60895.0,0.004]
[1728000412597,0.37880195,60896.0,60893.0,0.000818]
[1728000412818,0.164214,60896.0,60895.0,0.001]
[1728000413055,0.164214,60896.0,60895.0,0.004]
[1728000413306,0.50183335,60896.0,60895.0,0.004]
[1728000413549,0.164219,60894.0,60893.0,0.000818]
[1728000413774,0.31306983,60894.0,60893.0,0.000818]
[1728000414006,0.33761935,60894.0,60893.0,0.002818]
[1728000414235,0.21462691,60894.0,60893.0,0.002818]
[1728000414471,0.21462691,60894.0,60893.0,0.000818]
[1728000414694,0.37884591,60894.0,60893.0,0.000818]
[1728000415443,0.21462691,60894.0,60893.0,0.001818]
[1728000415685,0.21462691,60894.0,60893.0,0.002818]
[1728000416135,0.21462691,60894.0,60893.0,0.16504]
[1728000416371,0.12306488,60894.0,60893.0,0.16504]
[1728000416586,0.12306488,60894.0,60893.0,0.16604]
[1728000417026,0.12306488,60894.0,60893.0,0.000818]
[1728000417262,0.12306488,60894.0,60893.0,0.002818]
[1728000417776,0.12306488,60894.0,60893.0,0.16704]
[1728000418008,0.28728388,60894.0,60893.0,0.002818]
[1728000418224,0.33769179,60894.0,60893.0,0.002818]
[1728000418436,0.12306488,60894.0,60893.0,0.16704]
[1728000418647,0.12306488,60894.0,60893.0,0.16504]
[1728000419090,0.12306488,60894.0,60893.0,0.17004]
[1728000419511,0.12306488,60894.0,60893.0,0.16504]
[1728000419721,0.12306488,60894.0,60893.0,0.16804]
[1728000420162,0.21462691,60896.0,60893.0,0.16804]
[1728000420163,0.21457242,60895.0,60894.0,0.164218]
[1728000420422,0.37878642,60896.0,60893.0,0.168038]
[1728000420642,0.164219,60894.0,60893.0,0.001818]
[1728000420879,0.82048082,60894.0,60893.0,0.001818]
[1728000421112,0.97268147,60894.0,60893.0,0.001818]
[1728000421825,0.97268147,60894.0,60893.0,0.000818]
[1728000422053,0.97268147,60894.0,60893.0,0.003818]
[1728000422498,1.07268147,60894.0,60893.0,0.000818]
[1728000422991,1.07268147,60894.0,60887.0,0.0495845]
[1728000422992,0.242735,60888.0,60887.0,0.0495845]
[1728000423220,1.21911304,60888.0,60887.0,0.0495845]
[1728000423447,1.21911304,60888.0,60866.0,0.328589]
[1728000423448,0.164265,60877.0,60866.0,0.328589]
[1728000423669,0.164265,60877.0,60875.0,0.0498266]
[1728000423670,0.81153586,60877.0,60875.0,0.0498266]
[1728000423902,0.81153586,60877.0,60865.0,0.000818]
[1728000423903,0.328555,60873.0,60865.0,0.000818]
[1728000424153,0.07385802,60868.0,60865.0,0.165115]
[1728000424387,0.26276537,60869.0,60865.0,0.165115]
[1728000424602,0.07382337,60869.0,60868.0,0.164288]
[1728000425030,0.07382337,60869.0,60868.0,0.164287]
[1728000425519,0.04919116,60869.0,60868.0,0.164287]
[1728000426623,0.23810537,60871.0,60868.0,0.164289]
[1728000426624,0.04919116,60870.0,60868.0,0.164289]
[1728000426836,0.04919116,60869.0,60868.0,0.166289]
[1728000427045,0.04919116,60870.0,60868.0,0.166289]
[1728000427481,0.04919116,60870.0,60869.0,0.164287]
[1728000427712,0.04919116,60872.0,60869.0,0.164287]
[1728000427959,0.164287,60869.0,60868.0,0.001]
[1728000428190,0.16429,60868.0,60865.0,0.000818]
[1728000428417,0.56476989,60871.0,60865.0,0.165114]
[1728000428418,0.164288,60869.0,60865.0,0.165114]
[1728000428628,0.164288,60869.0,60866.0,0.164294]
[1728000428863,0.164288,60869.0,60865.0,0.000818]
[1728000428864,0.164295,60866.0,60865.0,0.000818]
[1728000429514,0.29598616,60866.0,60865.0,0.000818]
[1728000430219,0.248795,60866.0,60865.0,0.000818]
[1728000430557,0.0845,60866.0,60865.0,0.000818]
[1728000430695,0.0845,60866.0,60865.0,0.165116]
[1728000430696,0.002,60866.0,60865.0,0.165116]
[1728000430919,0.007,60866.0,60865.0,0.165116]
[1728000431139,0.002,60866.0,60865.0,0.165116]
[1728000431360,0.164282,60871.0,60866.0,0.164292]
[1728000431576,0.32746871,60871.0,60867.0,0.164291]
[1728000431804,0.164284,60870.0,60867.0,0.164291]
[1728000432020,0.32746971,60871.0,60867.0,0.164292]
[1728000432256,0.32746971,60871.0,60868.0,0.164289]
[1728000432486,0.164287,60869.0,60866.0,0.164293]
[1728000433788,0.164287,60869.0,60866.0,0.165293]
[1728000435428,0.328571,60870.0,60866.0,0.002]
[1728000435668,0.16429,60868.0,60866.0,0.002]
[1728000436375,0.16429,60868.0,60866.0,0.001]
[1728000436639,0.16429,60868.0,60865.0,0.165116]
[1728000437423,0.16429,60868.0,60865.0,0.000818]
[1728000437654,0.16629,60868.0,60865.0,0.000818]
[1728000438583,0.35130673,60866.0,60865.0,0.000818]
[1728000438826,0.59699344,60866.0,60865.0,0.000818]